bitfinex/quotes_ETHUSD_20220220
["timestamp","ask_amount","ask_price","bid_price","bid_amount"]
[1645360495351,1.76505098,2637.5,2635.8,8.0549]
[1645360495543,4.97547056,2637.4,2635.8,8.0549]
[1645360495744,0.76505098,2637.3,2635.8,8.0049]
[1645360495948,0.76505098,2637.3,2636.8,0.00264928]
[1645360495949,1.76505098,2637.3,2636.8,0.00264928]
[1645360496246,0.76505098,2637.2,2636.8,0.00264928]
[1645360496649,1.19991958,2637.6,2636.8,0.00264928]
[1645360496650,0.76505098,2637.5,2636.8,0.00264928]
[1645360496851,5.17936374,2637.8,2636.6,1.0043977]
[1645360496852,0.76505098,2637.4,2636.6,1.0043977]
[1645360497151,3.2529,2637.8,2636.9,0.00241691]
[1645360497152,0.76505098,2637.3,2636.9,0.00241691]
[1645360497345,0.76505098,2637.2,2637.1,0.87770369]
[1645360497548,0.76505098,2637.8,2637.1,0.87770369]
[1645360497751,0.77462952,2637.7,2637.1,0.87770369]
[1645360497946,0.71041958,2637.8,2636.5,0.9489819]
[1645360497947,0.77462952,2637.6,2636.5,0.9489819]
[1645360498148,0.77462952,2637.5,2636.4,1.89795]
[1645360498347,0.71041958,2637.6,2637.3,0.00241675]
[1645360498653,0.77462952,2637.5,2637.3,0.00241675]
[1645360498894,0.77462952,2637.4,2637.3,0.00241675]
[1645360499093,0.77462952,2637.4,2637.3,1.12824917]
[1645360499291,1.4850491,2638.0,2637.3,1.12824917]
[1645360499497,0.71041958,2637.8,2637.3,1.13066594]
[1645360499700,0.77462952,2637.7,2637.3,1.13066594]
[1645360499893,0.77462952,2637.6,2637.3,1.13066594]
[1645360500091,0.77462952,2637.5,2637.3,1.13066594]
[1645360500291,0.77462952,2637.4,2637.3,1.12824917]
[1645360500690,0.71041958,2637.9,2637.3,1.13066593]
[1645360500890,1.4850491,2637.8,2637.3,1.13066593]
[1645360501090,0.77462952,2637.7,2637.2,1.89744]
[1645360501290,0.77462952,2637.6,2637.4,1.07497274]
[1645360501490,0.77462952,2637.5,2637.4,1.07497274]
[1645360501691,0.77462952,2637.5,2637.1,1.3091184]
[1645360501893,0.71041958,2637.9,2637.1,1.3091184]
[1645360501894,0.77462952,2637.4,2637.2,0.00314936]
[1645360502092,0.77462952,2637.3,2637.0,0.00314936]
[1645360502298,0.77462952,2637.2,2637.0,0.00314936]
[1645360502560,0.77462952,2637.1,2636.8,4.98054936]
[1645360502752,0.95346374,2637.7,2637.0,1.16527364]
[1645360502753,0.71041958,2637.4,2637.0,1.16527364]
[1645360502951,0.74444189,2637.3,2637.0,1.16527364]
[1645360503150,0.74444189,2637.2,2637.1,0.00314936]
[1645360503353,0.71041958,2637.6,2637.0,1.16527364]
[1645360503550,0.71041958,2637.6,2637.1,0.00314936]
[1645360503551,1.45486147,2637.6,2637.1,0.00314936]
[1645360503752,0.74444189,2637.5,2637.1,0.00314936]
[1645360503953,0.71041958,2637.8,2637.6,1.14969407]
[1645360504152,0.71041958,2637.8,2637.1,0.00314936]
[1645360504351,0.71041958,2637.8,2637.2,0.00092087]
[1645360504752,1.45425145,2637.9,2637.2,0.00092087]
[1645360504957,0.74383187,2637.8,2637.2,0.95278023]
[1645360505153,0.74383187,2637.7,2637.3,0.00314936]
[1645360505354,0.74383187,2637.6,2637.3,0.00314936]
[1645360505551,0.74383187,2637.5,2637.2,0.95136233]
[1645360505751,0.74383187,2637.4,2637.3,0.92391816]
[1645360505956,0.74383187,2637.9,2637.3,0.9207688]
[1645360506156,1.55031958,2638.1,2637.4,30.2940734]
[1645360506398,0.74425439,2638.0,2637.9,11.55]
[1645360506793,0.71041958,2638.5,2637.8,0.94838]
[1645360506794,0.71041958,2638.5,2637.8,1.37958]
[1645360506995,0.71041958,2638.5,2638.0,0.92650706]
[1645360507406,0.71041958,2638.6,2638.0,12.77650706]
[1645360507601,1.14296374,2638.9,2638.2,13.44668]
[1645360507602,0.71041958,2638.7,2638.2,13.44668]
[1645360507813,0.71041958,2638.7,2638.3,0.00314936]
[1645360508003,0.71041958,2638.8,2638.2,13.74668]
[1645360508202,0.71041958,2639.0,2638.4,11.55]
[1645360508396,0.95346374,2639.2,2638.4,11.55]
[1645360508397,0.95346374,2639.2,2638.9,0.91119518]
[1645360508596,0.95346374,2639.1,2638.9,0.91119518]
[1645360508798,1.09938021,2639.5,2638.9,0.91434454]
[1645360508799,0.71635371,2639.0,2638.9,0.91434454]
[1645360509000,0.7164785,2639.0,2638.9,1.85934688]
[1645360509199,0.95346374,2639.3,2638.9,1.85934688]
[1645360509200,0.7164785,2639.1,2638.9,1.85934688]
[1645360509401,0.7164785,2639.2,2638.9,1.85934688]
[1645360509595,0.7164785,2639.2,2638.9,0.91434454]
[1645360509799,0.7164785,2639.2,2638.9,0.91119518]
[1645360511245,1.16512471,2640.5,2639.0,30.49814]
[1645360511452,3.1257,2641.1,2639.4,38.0473489]
[1645360511453,2.36534591,2640.8,2639.4,38.0473489]
[1645360511643,1.16512471,2641.3,2639.5,15.0473489]
[1645360511644,2.36534591,2640.9,2639.5,15.0473489]
[1645360511842,1.1316211,2641.1,2639.5,19.07192913]
[1645360512043,1.1316211,2641.1,2639.7,11.5473489]
[1645360512244,2.36534591,2641.3,2639.7,11.8473489]
[1645360512457,7.32,2641.5,2639.7,18.7427089]
[1645360512458,2.36534591,2641.4,2639.7,18.7427089]
[1645360513043,2.36534591,2641.3,2639.7,18.7427089]
[1645360513244,2.36534591,2641.3,2639.7,13.7427089]
[1645360513445,2.36534591,2641.2,2639.7,13.7427089]
[1645360513646,2.36534591,2641.3,2639.8,12.4950213]
[1645360513900,0.00173094,2640.1,2639.8,12.4950213]
[1645360514098,0.00173094,2640.1,2639.8,0.9476724]
[1645360514695,1.18428619,2640.9,2639.9,0.86164696]
[1645360514887,0.06884,2641.1,2639.9,0.86164696]
[1645360515087,0.06884,2641.1,2639.9,12.33577296]
[1645360515088,0.00173094,2640.1,2639.9,12.33577296]
[1645360515888,0.84248076,2641.0,2639.9,12.33577296]
[1645360516090,0.06186672,2641.1,2639.9,12.33577296]
[1645360516291,0.06186672,2641.1,2640.1,0.94772]
[1645360516892,0.06186672,2641.1,2639.9,2.68118296]
[1645360517092,0.84586685,2640.0,2639.9,2.68118296]
[1645360517293,0.84586685,2640.0,2639.9,0.78577296]
[1645360517545,0.84586685,2640.0,2639.0,0.00314936]
[1645360517742,0.84586685,2640.0,2639.8,0.4312]
[1645360518147,0.84586685,2640.0,2638.8,3.69254936]
[1645360518345,0.84586685,2640.0,2638.8,0.19254936]
[1645360518545,0.84586685,2640.0,2638.8,0.00314936]
[1645360518546,1.81259601,2640.0,2638.8,0.00314936]
[1645360518853,3.72280908,2640.0,2638.8,0.00314936]
[1645360519046,1.90756208,2639.8,2638.8,0.00314936]
[1645360519249,1.90756208,2639.8,2638.7,0.00265231]
[1645360519250,1.43009479,2639.3,2638.7,0.00265231]
[1645360519647,1.1316769,2638.9,2638.4,1.12158639]
[1645360519845,1.43009479,2639.4,2638.7,0.00265172]
[1645360520247,0.95321566,2639.2,2638.7,0.00265172]
[1645360520846,1.89303485,2639.3,2638.8,1.15998484]
[1645360521146,1.89303485,2639.3,2638.2,1.89668]
[1645360521147,0.71517639,2639.0,2638.7,0.94828]
[1645360521390,0.71517639,2638.8,2638.2,1.35466018]
[1645360521588,0.00265087,2639.5,2638.2,1.35466018]
[1645360521589,0.71517639,2638.9,2638.2,1.35466018]
[1645360521991,0.71517639,2638.6,2637.8,3.79242]
[1645360522188,0.95321566,2638.8,2637.8,3.79242]
[1645360522189,0.71517639,2638.5,2637.8,3.79242]
[1645360522390,0.71517639,2638.5,2638.2,1.17112712]
[1645360522890,0.71517639,2638.6,2638.2,1.17112712]
[1645360523390,0.95321566,2638.9,2638.2,1.17112712]
[1645360523391,0.71517639,2638.7,2638.2,1.17112712]
[1645360523589,0.71517639,2638.5,2638.2,1.17112712]
[1645360523791,0.71517639,2638.7,2638.2,1.17112712]
[1645360523990,0.71517639,2638.5,2638.0,0.94852]
[1645360524191,0.71517639,2638.5,2637.8,3.79242]
[1645360524791,0.71517639,2638.5,2638.1,0.00092072]
[1645360525040,0.71517639,2638.5,2638.1,1.18368802]
[1645360525544,0.71517639,2638.7,2638.1,1.18368802]
[1645360525749,0.71517639,2638.6,2638.1,1.1827673]
[1645360525945,0.71782771,2638.7,2638.2,0.00265182]
[1645360526942,1.32800697,2638.7,2638.1,1.1827673]
[1645360527143,1.33042797,2638.7,2638.3,0.00242136]
[1645360527542,0.0008,2638.5,2638.3,0.00242136]
[1645360527945,0.0008,2638.5,2638.2,2.8451314]
[1645360528146,0.61363058,2638.5,2638.3,11.55]
[1645360528348,0.61283058,2638.4,2638.3,0.00242133]
[1645360528797,0.0008,2638.5,2638.3,0.00242133]
[1645360529190,0.0008,2638.5,2638.2,14.3951314]
[1645360529597,0.0008,2638.5,2638.4,11.55]
[1645360529793,0.0008,2638.5,2638.4,15.05]
[1645360529988,0.71517639,2639.6,2638.6,11.55]
[1645360530187,0.71517639,2639.6,2638.8,12.4980398]
[1645360530487,0.71517639,2639.6,2638.9,11.55]
[1645360530991,0.71517639,2639.6,2639.3,1.00604414]
[1645360531187,0.71517639,2639.6,2639.3,1.95411414]
[1645360531791,0.71517639,2639.6,2639.3,13.50411414]
[1645360531792,0.00152568,2639.6,2639.3,13.50411414]
[1645360531988,0.00152568,2639.6,2639.3,1.95411414]
[1645360532837,0.71517639,2639.7,2639.3,1.95411414]
[1645360533238,0.00243794,2639.6,2639.3,1.95411414]
[1645360533541,0.00243794,2639.6,2639.3,1.00604414]
[1645360534139,0.71517639,2639.7,2639.3,1.00604414]
[1645360534337,0.00243794,2639.6,2639.3,1.00604414]
[1645360534537,0.00243794,2639.6,2639.3,12.55604414]
[1645360534939,0.00243794,2639.6,2639.3,13.50410414]
[1645360535141,0.00243794,2639.6,2639.3,17.00410414]
[1645360535343,0.84586685,2640.0,2639.5,16.55]
[1645360535544,0.84586685,2640.0,2639.6,15.05]
[1645360535739,0.71517639,2640.5,2639.8,11.55]
[1645360535945,0.71517639,2640.5,2640.0,11.55]
[1645360536146,0.71517639,2640.6,2640.2,11.55]
[1645360536407,1.01508238,2641.1,2640.4,11.55]
[1645360536796,0.00243474,2640.4,2640.3,3.5]
[1645360536995,0.00243474,2640.4,2640.3,1.13353453]
[1645360537300,0.00243474,2640.4,2640.2,0.4521045]
[1645360537499,0.00243474,2640.4,2640.1,0.97592884]
[1645360537796,0.95321566,2640.7,2640.1,0.97592884]
[1645360537994,0.95321566,2640.7,2639.8,3.78963]
[1645360537995,0.00243472,2640.4,2639.8,3.78963]
[1645360538196,0.00243472,2640.4,2639.7,0.94786]
[1645360538400,0.95565038,2640.4,2639.7,0.94786]
[1645360538597,0.95565038,2640.4,2639.4,1.8957555]
[1645360538598,0.95321566,2640.3,2639.4,1.8957555]
[1645360539094,1.43009479,2640.6,2639.4,3.0838607]
[1645360539095,1.03772925,2640.0,2639.4,3.0838607]
[1645360540364,1.03772925,2640.0,2639.4,1.8957555]
[1645360540365,0.00243511,2639.8,2639.4,1.8957555]
[1645360540561,0.00243511,2639.8,2639.3,0.94805]
[1645360541265,1.99094491,2640.0,2639.1,10.78002359]
[1645360541465,0.00243516,2639.7,2639.1,11.77335009]
[1645360541660,0.00243516,2639.7,2639.1,0.9933265]
[1645360542463,0.95321566,2639.8,2639.1,0.9933265]
[1645360542661,0.95321566,2639.8,2639.3,0.94805]
[1645360542662,0.0024369,2639.5,2639.3,0.94805]
[1645360543668,0.95321566,2639.9,2639.3,0.94805]
[1645360543901,0.95321566,2639.9,2639.5,1.10500883]
[1645360544108,0.95321566,2640.0,2639.5,1.10500883]
[1645360544706,0.95321566,2640.0,2639.3,0.94805]
[1645360545100,0.95565244,2639.9,2639.3,0.94805]
[1645360545900,0.95565244,2639.9,2639.3,1.93301213]
[1645360546099,0.95321566,2639.9,2639.3,1.93301213]
[1645360546300,0.71612798,2639.6,2639.3,1.93301213]
[1645360546902,0.71612798,2639.6,2639.3,0.94805]
[1645360547103,0.71612798,2639.5,2639.3,0.94805]
[1645360547304,0.95321566,2639.5,2639.3,0.94805]
[1645360547550,0.71854745,2639.6,2639.3,12.49805]
[1645360547753,0.00243858,2639.6,2639.4,11.55]
[1645360548145,0.00243858,2639.6,2639.4,13.4458185]
[1645360548350,0.71854745,2639.6,2639.4,13.4458185]
[1645360548550,0.71610887,2639.6,2639.4,13.4458185]
[1645360548745,0.71854743,2639.6,2639.4,13.4458185]
[1645360548945,0.71610887,2639.5,2639.4,14.50372411]
[1645360549152,0.71854743,2639.6,2639.4,14.50372411]
[1645360549747,0.71610887,2639.7,2639.4,14.50372411]
[1645360549946,0.00243494,2639.6,2639.4,14.50372411]
[1645360550147,0.71854381,2639.6,2639.4,14.50372411]
[1645360550948,0.71610887,2639.6,2639.4,14.50372411]
[1645360551149,1.21422497,2639.6,2639.4,14.50372411]
[1645360551594,1.21179003,2639.5,2639.4,14.50372411]
[1645360552092,0.49568116,2639.5,2639.4,14.50372411]
[1645360552291,0.71854383,2639.6,2639.4,14.50372411]
[1645360553191,0.71610887,2639.6,2639.4,14.50372411]
[1645360553491,0.71854406,2639.6,2639.4,14.50372411]
[1645360553903,0.00243519,2639.6,2639.5,15.05]
[1645360554192,0.00243519,2639.6,2639.5,16.05]
[1645360554397,0.71610887,2639.9,2639.5,16.05]
[1645360554594,0.71610887,2639.9,2639.6,11.55]
[1645360555355,0.71610887,2640.0,2639.8,11.55]
[1645360555655,0.71610887,2640.0,2639.8,1.08588174]
[1645360556252,0.49553462,2639.9,2639.8,1.08588174]
[1645360556652,0.95321566,2640.1,2639.8,1.08588174]
[1645360556854,0.95321566,2640.1,2639.7,1.8955568]
[1645360557061,1.43009479,2640.4,2639.7,1.8955568]
[1645360557062,0.95321566,2639.9,2639.7,1.8955568]
[1645360557253,0.95321566,2639.9,2639.5,13.44557]
[1645360557853,0.00152111,2640.0,2639.5,13.44557]
[1645360557854,0.95321566,2639.8,2639.5,13.44557]
[1645360558256,1.44875028,2639.9,2638.7,3.79117]
[1645360558462,0.95321566,2639.5,2639.0,0.94818]
[1645360558655,1.43009479,2639.7,2639.0,0.94818]
[1645360558656,0.95321566,2639.4,2639.0,0.94818]
[1645360559107,0.49553462,2639.3,2639.0,0.94818]
[1645360559307,0.49553462,2639.2,2639.0,0.94818]
[1645360559711,0.49553462,2639.1,2638.7,0.01218847]
[1645360559907,0.49553462,2639.0,2638.7,0.01218847]
[1645360560108,0.49553462,2638.9,2638.7,0.01218847]
[1645360560307,1.44875028,2639.2,2638.7,0.01218847]
[1645360560504,1.44875028,2639.2,2638.6,0.94831]
[1645360560505,0.49553462,2639.1,2638.6,0.94831]
[1645360560805,0.49553462,2639.0,2638.7,0.00247458]
[1645360561004,0.49553462,2638.9,2638.7,0.00247458]
[1645360561206,0.95321566,2639.3,2638.7,1.89884458]
[1645360561406,0.95321566,2639.3,2639.0,12.497949]
[1645360561605,0.95321566,2639.3,2639.0,11.72768228]
[1645360562007,0.49553462,2639.4,2639.0,11.72768228]
[1645360562210,0.49553462,2639.3,2639.1,12.78966893]
[1645360562407,0.49553462,2639.2,2639.1,12.78966893]
[1645360563447,0.00247369,2639.8,2639.6,1.17639311]
[1645360564146,0.95321566,2639.9,2639.6,1.17639311]
[1645360564351,0.00243263,2639.8,2639.6,1.17639311]
[1645360564853,0.00243263,2639.8,2639.6,12.72639311]
[1645360565046,0.00243263,2639.8,2639.6,1.17639311]
[1645360565246,0.95321566,2639.8,2639.6,1.17639311]
[1645360565546,0.95564829,2639.8,2639.6,1.17639311]
[1645360565948,0.00243263,2639.8,2639.6,1.17639311]
[1645360566148,0.00243263,2639.8,2639.6,1.1720931]
[1645360566390,0.71764905,2639.7,2639.5,0.94789]
[1645360566595,0.71764905,2639.7,2639.5,12.49789]
[1645360567193,0.71764905,2639.7,2639.5,0.94789]
[1645360568192,0.71764905,2639.7,2639.5,1.961122]
[1645360568398,0.95321566,2639.7,2639.4,1.89578]
[1645360568592,0.71774162,2639.5,2639.4,1.89578]
[1645360568797,0.71776614,2639.5,2639.4,1.89578]
[1645360568993,0.95321566,2639.7,2639.4,1.89578]
[1645360569394,0.71866841,2639.5,2639.4,14.62026004]
[1645360569597,0.71866841,2639.5,2639.4,12.72448004]
[1645360570052,0.71866841,2639.5,2639.4,12.71803159]
[1645360571041,0.71866841,2639.5,2639.4,12.72448004]
[1645360572045,7.321e-05,2639.5,2639.4,12.72448004]
[1645360572250,0.72017257,2639.7,2639.5,11.55]
[1645360572446,0.00243506,2639.8,2639.6,11.55]
[1645360572447,0.72017257,2639.8,2639.6,11.55]
[1645360572651,0.95321566,2640.1,2639.6,11.55]
[1645360572944,0.00243506,2639.8,2639.6,11.55]
[1645360573146,0.95321566,2640.1,2639.6,11.55]
[1645360573547,0.95321566,2640.1,2639.6,12.4976961]
[1645360574603,0.95321566,2640.1,2640.0,1.02181669]
[1645360575899,0.95321566,2640.1,2639.6,0.9476961]
[1645360576100,0.95321566,2640.1,2639.5,3.7908242]
[1645360576300,0.95321566,2640.1,2639.4,0.94805]
[1645360576502,0.95321566,2639.6,2639.4,0.94805]
[1645360577300,0.95321566,2639.6,2639.5,12.4978692]
[1645360577747,0.95321566,2639.7,2639.5,12.4978692]
[1645360577943,0.95321566,2639.8,2639.5,12.4978692]
[1645360578745,0.95321566,2639.8,2639.7,1.18324805]
[1645360579147,0.00243503,2639.9,2639.5,14.3935892]
[1645360579347,0.95959267,2639.7,2639.5,2.8435892]
[1645360579548,0.95959267,2639.6,2639.5,2.8435892]
[1645360580150,1.43009479,2639.6,2639.4,0.94805]
[1645360580752,1.43009479,2639.6,2639.0,0.00243593]
[1645360580952,1.43009479,2639.6,2638.6,3.79146]
[1645360580953,0.9595194,2639.1,2638.6,3.79146]
[1645360581152,1.43009479,2639.2,2639.0,0.00243582]
[1645360581603,1.43009479,2639.1,2638.3,11.55]
[1645360581905,0.96003155,2638.8,2638.5,0.97561522]
[1645360582501,0.96003155,2638.9,2638.5,0.97561522]
[1645360582700,0.96003155,2638.9,2638.2,3.7917821]
[1645360582701,0.71962738,2638.6,2638.4,1.89657]
[1645360583101,0.71962738,2638.6,2638.4,13.44657]
[1645360583302,0.96003155,2638.9,2638.4,1.89657]
[1645360583502,0.43064572,2638.8,2638.4,13.44748997]
[1645360583802,0.43064572,2638.7,2638.6,0.9035222]
[1645360584002,0.43064572,2638.7,2638.4,1.89748997]
[1645360584201,0.43064572,2638.6,2638.4,1.89748997]
[1645360584403,0.43064572,2638.5,2638.4,0.94921997]
[1645360584601,0.96003155,2638.8,2638.5,11.55]
[1645360585062,0.43057134,2638.7,2638.5,11.55]
[1645360585248,0.96003155,2638.9,2638.6,0.9389595]
[1645360585457,0.96003155,2638.9,2638.5,11.55]
[1645360585849,0.96003155,2638.9,2638.6,0.00265166]
[1645360586248,1.39033935,2638.8,2638.6,0.00265166]
[1645360586449,0.4303078,2638.7,2638.6,0.00265166]
[1645360586851,0.96003155,2638.9,2638.4,0.9483]
[1645360587250,0.96003155,2638.9,2638.5,0.00242116]
[1645360587251,0.0060854,2638.7,2638.5,0.00242116]
[1645360587451,0.4303078,2638.6,2638.5,0.00242116]
[1645360588061,0.4303078,2638.6,2638.4,0.9483]
[1645360588452,0.4303078,2638.6,2638.4,0.9507212]
[1645360588656,0.4303078,2638.6,2638.4,1.8989512]
[1645360588897,0.4303078,2638.6,2638.4,13.4489512]
[1645360589300,0.4303078,2638.6,2638.4,13.44653]
[1645360589512,0.4303078,2638.6,2638.4,1.89895122]
[1645360590499,0.4303078,2638.6,2638.4,0.9483]
[1645360590702,0.4303078,2638.6,2638.4,0.95072122]
[1645360591702,0.4303078,2638.6,2638.4,1.89653]
[1645360591899,0.4303078,2638.6,2638.4,1.89896663]
[1645360592751,0.0060854,2638.7,2638.4,1.89896663]
[1645360592952,0.0060854,2638.7,2638.5,11.55]
[1645360594369,0.0060854,2638.7,2638.5,0.0024366]
[1645360595265,0.0060854,2638.7,2638.4,0.9483]
[1645360595558,0.0060854,2638.7,2638.5,0.00243557]
[1645360595757,0.96611695,2638.7,2638.5,0.00243557]
[1645360595961,0.0060854,2638.7,2638.5,0.00243557]
[1645360596394,0.71780889,2638.6,2638.5,0.00243557]
[1645360596595,0.0060854,2638.7,2638.3,0.90257999]
[1645360596794,0.0060854,2638.7,2638.5,0.00243557]
[1645360596997,0.71776311,2638.6,2638.5,0.00243557]
[1645360597201,0.0060854,2638.7,2638.5,0.00243557]
[1645360597396,0.96611695,2638.7,2638.5,0.00243557]
[1645360597795,0.96611695,2638.7,2638.3,0.94843]
[1645360598000,0.71772556,2638.5,2638.3,0.94843]
[1645360598200,0.71772556,2638.6,2638.3,0.94843]
[1645360598398,0.72381096,2638.7,2638.3,4.7413851]
[1645360598601,0.0060854,2638.7,2638.3,16.2913851]
[1645360598998,0.0060854,2638.7,2638.5,1.02472132]
[1645360599499,0.0060854,2638.7,2638.5,2.92117942]
[1645360599699,0.72381096,2638.7,2638.5,2.92117942]
[1645360599899,0.0060854,2638.7,2638.5,2.92117942]
[1645360600151,0.71772556,2638.8,2638.5,14.47117942]
[1645360600351,0.71772556,2638.9,2638.5,14.47361807]
[1645360600550,0.71772556,2639.1,2638.5,14.47361807]
[1645360600751,0.71772556,2639.1,2638.9,2.00507407]
[1645360600949,0.71772556,2639.1,2638.9,2.95319207]
[1645360601751,0.71772556,2639.1,2638.9,1.23499269]
[1645360602154,0.71772556,2639.0,2638.9,1.23499269]
[1645360602960,0.96246964,2639.2,2638.9,2.18311069]
[1645360603264,0.96246964,2639.2,2638.9,1.12614662]
[1645360603455,0.96246964,2639.2,2638.8,0.00243848]
[1645360603659,0.96003155,2639.2,2638.3,4.7413275]
[1645360603920,0.71791273,2638.8,2638.3,4.7413275]
[1645360604112,0.71791273,2638.6,2638.3,4.7413275]
[1645360604316,0.71791273,2638.7,2638.3,2.8448475]
[1645360604509,0.71791273,2638.6,2638.3,2.8448475]
[1645360604709,0.71791273,2638.7,2638.3,2.8448475]
[1645360605106,0.71791273,2638.7,2638.3,2.8472861]
[1645360605912,0.71791273,2638.7,2638.4,2.84483]
[1645360606311,0.71791273,2638.7,2638.4,3.79551378]
[1645360606511,1.43253262,2639.2,2638.4,3.79551378]
[1645360606512,0.71791273,2638.8,2638.4,3.79551378]
[1645360607111,0.71791273,2638.7,2638.4,3.79551378]
[1645360607309,0.71791273,2638.7,2638.4,3.7930752]
[1645360607552,0.71791273,2638.6,2638.4,3.7930752]
[1645360607750,0.71791273,2638.6,2638.5,0.00243855]
[1645360608151,0.71791273,2638.8,2638.5,0.00243855]
[1645360608554,0.71791273,2638.8,2638.4,1.89655]
[1645360608759,0.71791273,2638.8,2638.5,0.00243853]
[1645360609153,0.71791273,2638.7,2638.5,0.00243853]
[1645360609752,0.71791273,2638.7,2638.3,1.8966081]
[1645360609953,0.71791273,2638.7,2638.5,0.0023654]
[1645360610352,0.71791273,2638.6,2638.5,0.0023654]
[1645360610957,0.71791273,2638.6,2638.3,0.94827]
[1645360611328,0.71791273,2638.5,2638.4,0.00236542]
[1645360612104,0.71791273,2638.5,2638.3,0.94827]
[1645360612305,0.71791273,2638.5,2638.3,0.95063545]
[1645360612706,0.00532266,2638.7,2638.3,0.95063545]
[1645360612707,1.14339576,2638.6,2638.3,0.95063545]
[1645360612908,1.14339576,2638.6,2638.3,1.89898445]
[1645360613207,1.14339576,2638.6,2638.3,1.896619]
[1645360613606,1.14339576,2638.6,2638.3,1.89888807]
[1645360613607,0.42548303,2638.5,2638.3,1.89888807]
[1645360613808,0.71791273,2638.6,2638.3,1.89888807]
[1645360613809,0.42548303,2638.4,2638.3,1.89888807]
[1645360614008,1.13809576,2638.6,2638.3,1.89888807]
[1645360614213,1.43009479,2639.1,2638.4,5.04825]
[1645360614214,0.42548303,2638.5,2638.4,5.04825]
[1645360614408,0.42548303,2638.5,2638.4,15.99825]
[1645360614610,0.42548303,2638.5,2638.4,4.44825]
[1645360614808,0.96003155,2639.1,2638.7,1.13347055]
[1645360615046,0.00226832,2639.2,2638.7,1.13347055]
[1645360615047,1.38781353,2639.2,2638.7,1.13347055]
[1645360615249,0.42551366,2639.1,2638.7,1.13347055]
[1645360615751,1.38554521,2639.1,2638.7,1.13347055]
[1645360616048,0.42551366,2639.0,2638.8,0.00226894]
[1645360616250,0.42551366,2638.9,2638.8,0.00226894]
[1645360616450,1.38554521,2639.1,2638.8,0.00226894]
[1645360616853,1.38554521,2639.1,2638.7,2.08165055]
[1645360617050,0.42551366,2639.0,2638.7,2.08165055]
[1645360617249,0.96003155,2639.0,2638.8,0.00228438]
[1645360617648,1.38554521,2639.0,2638.8,0.00228438]
[1645360617849,0.42551366,2638.9,2638.8,0.00228438]
[1645360618053,1.38554521,2639.1,2638.7,0.94818]
[1645360618451,0.96003155,2638.9,2638.8,0.00228435]
[1645360618899,0.42551366,2638.9,2638.8,0.00228435]
[1645360619303,2.31844163,2639.2,2638.7,0.94818]
[1645360619304,1.85560845,2639.1,2638.7,0.94818]
[1645360619502,0.88606285,2639.2,2638.7,0.95046437]
[1645360619503,0.95934087,2638.8,2638.7,0.95046437]
[1645360619901,0.95934087,2638.9,2638.7,0.95046437]
[1645360620099,0.42551366,2638.8,2638.7,0.95046437]
[1645360620602,0.95934087,2639.0,2638.7,0.94818]
[1645360621601,0.95934087,2639.0,2638.5,1.8963427]
[1645360621602,0.95934087,2639.0,2638.5,1.12844691]
[1645360621802,1.38485453,2638.9,2638.5,1.72844691]
[1645360622104,1.38485453,2638.9,2638.7,0.00228183]
[1645360622105,0.42551366,2638.8,2638.7,0.00228183]
[1645360622301,1.38485453,2638.8,2638.7,0.00228183]
[1645360622751,0.42551366,2638.8,2638.7,0.00228183]
[1645360622951,0.42551366,2638.8,2638.6,0.94827]
[1645360623151,0.42551366,2638.7,2638.5,2.07669691]
[1645360623351,0.42551366,2638.6,2638.5,1.12844691]
[1645360624153,1.14555988,2638.6,2638.5,1.12844691]
[1645360624756,1.14555988,2638.6,2638.5,1.07844691]
[1645360624958,0.42551366,2638.6,2638.5,1.07844691]
[1645360626395,0.42551366,2638.6,2638.5,2.29104535]
[1645360626396,0.72101803,2638.6,2638.5,2.29104535]
[1645360626600,0.42551366,2638.6,2638.5,1.07844691]
[1645360626995,0.43042754,2638.6,2638.5,1.07844691]
[1645360627997,1.15159936,2638.6,2638.5,13.84104132]
[1645360628197,1.15159936,2638.6,2638.5,2.29104132]
[1645360628797,0.43042754,2638.6,2638.5,1.07844691]
[1645360629100,1.43238487,2639.0,2638.5,1.07844691]
[1645360629101,0.67573678,2638.9,2638.5,17.94116991]
[1645360629301,0.00229008,2639.0,2638.9,11.55]
[1645360629499,1.92015945,2639.9,2638.9,12.15]
[1645360629701,1.92015945,2639.9,2639.1,11.85]
[1645360629902,1.92015945,2639.9,2639.3,11.55]
[1645360630151,1.92015945,2639.9,2639.3,13.09788]
[1645360630351,1.92015945,2639.9,2639.3,0.94788]
[1645360630550,1.92015945,2639.8,2639.3,0.94788]
[1645360630750,1.92015945,2639.8,2639.3,2.12040802]
[1645360630950,1.92015945,2639.9,2639.4,0.9478802]
[1645360631355,1.92015945,2639.7,2639.0,2.8433808]
[1645360631553,1.92015945,2639.6,2638.9,2.84334]
[1645360631953,1.92015945,2639.6,2638.9,3.7914127]
[1645360632153,1.92244219,2639.8,2638.9,3.7914127]
[1645360632354,1.92244219,2639.8,2639.3,1.89584]
[1645360632560,3.5,2640.1,2639.3,1.89584]
[1645360632561,1.92015945,2640.1,2639.4,11.55]
[1645360632756,0.00228282,2639.5,2639.4,11.55]
[1645360632953,1.92015945,2640.1,2639.4,11.55]
[1645360633353,1.92015945,2640.1,2639.5,0.98706282]
[1645360633555,1.92015945,2640.1,2639.5,1.93490282]
[1645360634600,1.92015945,2640.1,2639.5,0.94784]
[1645360634800,8.29277046,2640.3,2639.5,0.94784]
[1645360634801,1.92015945,2639.8,2639.5,0.94784]
[1645360635002,1.92015945,2639.7,2639.3,1.89584]
[1645360635205,16.79277046,2640.3,2639.2,0.2429]
[1645360635206,5.42015945,2639.6,2639.2,0.2429]
[1645360635600,0.84914548,2639.3,2639.2,0.2429]
[1645360637002,1.92015945,2639.4,2639.2,0.06715435]
[1645360637403,1.92015945,2639.5,2639.2,0.06715435]
[1645360637649,1.44080207,2639.4,2639.2,0.06715435]
[1645360637852,1.44080207,2639.5,2639.2,0.06715435]
[1645360638052,0.00228325,2639.6,2639.2,0.06715435]
[1645360638053,0.96040753,2639.4,2639.2,0.06715435]
[1645360638246,0.96047921,2639.5,2639.3,0.9479071]
[1645360639650,0.00228134,2639.6,2639.3,0.9479071]
[1645360639651,1.44080207,2639.7,2639.3,0.9479071]
[1645360640150,0.0022814,2639.6,2639.3,0.9479071]
[1645360640354,1.44308347,2639.6,2639.3,0.9479071]
[1645360640552,1.44308347,2639.6,2639.2,0.06715435]
[1645360640950,1.44080207,2639.6,2639.2,0.06715435]
[1645360641150,1.44308347,2639.6,2639.2,0.06715435]
[1645360641802,1.44308347,2639.6,2639.1,2.8439906]
[1645360641803,1.44308347,2639.6,2639.1,1.1930249]
[1645360642004,1.44080207,2639.5,2639.0,2.84364]
[1645360642203,1.44842032,2639.5,2639.0,2.84364]
[1645360642905,0.8550381,2639.4,2639.0,2.84364]
[1645360643302,1.44842032,2639.5,2639.0,2.84364]
[1645360644104,1.44080207,2639.4,2638.9,4.7403202]